Cogmind - Beta 14 @@@ ROGUE MODE // 2024.12.27 @ 01:38:39 Player: Anja Psicher Result: Self-destructed Performance ------------- Evolutions (1) 500 Regions Visited (2) 400 Robots Destroyed (20) 100 Value Destroyed (422) 422 Prototype IDs (2) 40 Alien Tech Used (0) 0 Bonus (0) 0 TOTAL SCORE: 1462 Bonus ------- None Cogmind --------- Core Integrity 400/400 Matter 300/300 Energy 125/125 System Corruption 0% Temperature Cool (0) Movement Treading (160) Location -9/Materials Parts ------- > --- POWER (1) -------- Light Ion Engine > --- PROPULSION (3) --- Light Treads Light Treads > --- UTILITY (3) ------ Large Storage Unit Structural Scanner > --- WEAPON (2) ------- Medium Laser Medium Laser > --- INVENTORY (15) --- Light Nuclear Core Light Treads Wheel Compact Wheel Improved Heat Sink Visual Processing Unit Sensor Array Signal Interpreter Seismic Detector Hacking Suite Tractor Beam EM Pulse Gun Medium Laser Particle Gun Grenade Launcher Peak State ------------ > --- POWER ------------ Light Ion Engine > --- PROPULSION ------- Light Treads Light Treads > --- UTILITY ---------- Improved Heat Sink Large Storage Unit > --- WEAPON ----------- Medium Laser Particle Gun > --- INVENTORY -------- Light Nuclear Core Light Treads Wheel Compact Wheel Structural Scanner Visual Processing Unit Sensor Array Signal Interpreter Seismic Detector Hacking Suite Tractor Beam EM Pulse Gun Medium Laser Medium Laser Grenade Launcher [Rating: 12] Favorites ----------- Power Light Ion Engine Engine Light Ion Engine Propulsion Light Treads Treads Light Treads Utility Large Storage Unit Device Structural Scanner Storage Large Storage Unit Weapon Medium Laser Energy Gun Medium Laser Launcher Grenade Launcher Build | -11 -10 -9 ------- Run | Yrd Mat Mat Slots Evolved 2 | . . 2 Power . | . . . Propulsion 1 | . . 1 Utility 1 | . . 1 Weapon . | . . . Parts Attached 28 | 7 21 . Power 3 | 1 2 . Engine 3 | 1 2 . Core . | . . . Reactor . | . . . Propulsion 7 | 2 5 . Treads 7 | 2 5 . Leg . | . . . Wheel . | . . . Hover . | . . . Flight . | . . . Utility 7 | 2 5 . Device 5 | 1 4 . Storage 2 | 1 1 . Processor . | . . . Hackware . | . . . Protection . | . . . Artifact . | . . . Weapon 11 | 2 9 . Energy Gun 9 | 2 7 . Energy Cannon . | . . . Ballistic Gun . | . . . Ballistic Cannon . | . . . Launcher 2 | . 2 . Special Weapon . | . . . Impact Weapon . | . . . Slashing Weapon . | . . . Piercing Weapon . | . . . Special Melee Weapon . | . . . Unidentified Prototypes . | . . . Parts Lost . | . . . Power . | . . . Propulsion . | . . . Utility . | . . . Weapon . | . . . Highest Loss Streak . | . . . To Critical Strikes . | . . . Average Slot Usage (%) 99 | . 99 . Engine 14 | . 14 . Treads 27 | . 27 . Device 14 | . 14 . Storage 14 | . 14 . Energy Gun 25 | . 25 . Launcher 2 | . 2 . Peak Build Rating 12 | 7 12 . Average Rating 8 | 5 9 . On Entrance 5 | . 7 9 Naked Turns . | . . . Heaviest Build 31 | 13 31 . Greatest Support 40 | 40 40 . Greatest Overweight (x) 9 | . 9 . Average Overweight (x) . | . . . Largest Inventory Capacity 15 | 8 15 . Average Capacity 14 | 7 14 . Most Carried 15 | 5 15 . Average Carried 13 | 2 14 . Final Capacity 15 | 8 15 15 Final Carried 15 | 5 15 15 Class Distribution -------------------- 100% | Mutant Dominant Class ---------------- Mutant | -10/Materials Mutant | -9/Materials Resources | -11 -10 -9 ----------- Run | Yrd Mat Mat Matter Collected 530 | 248 282 . Remotely . | . . . Salvage Created 618 | 20 598 . Parts 42 | 4 38 . Haulers Intercepted 1 | . 1 . Recyclers Shooed . | . . . Parts Field Recycled . | . . . Retrieved Matter . | . . . Parts Self-Destructed . | . . . Prevented . | . . . Kills | -11 -10 -9 ------- Run | Yrd Mat Mat Combat Hostiles Destroyed 11 | . 11 . Guns 7 | . 7 . AOE 3 | . 3 . Classes Destroyed 8 | 1 7 . Worker 2 | . 2 . Tunneler 1 | 1 . . Hauler 1 | . 1 . Recycler 1 | . 1 . Operator 1 | . 1 . Watcher 3 | . 3 . Swarmer 3 | . 3 . Grunt 8 | . 8 . Best Kill Streak 5 | 1 5 . Combat Bots Only 3 | . 3 . Max Kills in Single Turn 4 | 1 4 . Gunslinging . | . . . Exploded 3 | . 3 . Melee . | . . . Uniques/NPCs Destroyed . | . . . Combat | -11 -10 -9 -------- Run | Yrd Mat Mat Hostile Shots Fired 39 | . 39 . Missed 15 | . 15 . Damage Taken 317 | . 317 . Core 76 | . 76 . Absorbed by Shields . | . . . Core Remaining (%) 84 | 100 69 . Volleys Fired 48 | 2 46 . Largest 2 | 2 2 . Hottest 115 | 80 115 . Shots Fired 92 | 4 88 . Gun 87 | 4 83 . Cannon . | . . . Launcher 5 | . 5 . Special . | . . . Kinetic . | . . . Thermal 87 | 4 83 . Explosive 5 | . 5 . Electromagnetic . | . . . Robot Hit Streak 11 | 2 11 . Robot Miss Streak 6 | 1 6 . Penetration Max . | . . . Secondary Targets . | . . . Shots Hit Robots 55 | 2 53 . Core Hits 32 | 1 31 . Critical Kills . | . . . Critical Parts Destroyed . | . . . Critical Strikes 4 | . 4 . Burn 4 | . 4 . Melee Attacks . | . . . Impact . | . . . Slashing . | . . . Piercing . | . . . Sneak Attacks . | . . . Combat Hostiles . | . . . Follow-up Attacks . | . . . Damage Inflicted 932 | 22 910 . Guns 728 | 22 706 . Cannons . | . . . Explosions 204 | . 204 . Melee . | . . . Ramming . | . . . Kinetic . | . . . Thermal 728 | 22 706 . Explosive 204 | . 204 . Electromagnetic . | . . . Impact . | . . . Slashing . | . . . Piercing . | . . . Highest Corruption . | . . . Average Corruption . | . . . Corruption Purged . | . . . Corruption Blocked . | . . . Overload Shots . | . . . Overflow Damage . | . . . Projectiles . | . . . Explosions . | . . . Melee . | . . . Knockbacks . | . . . Impact . | . . . Kinetic . | . . . Secondary . | . . . Self-Inflicted Damage 48 | . 48 . Shots 2 | . 2 . Rammed . | . . . Targets Rammed . | . . . Kicked . | . . . Crushed . | . . . Highest Temperature 264 | 18 264 . Average Temperature 52 | 12 53 . Received Heat Transfer 129 | . 129 . Siege Activations . | . . . Robots Corrupted . | . . . Combat Hostiles . | . . . Parts Fried . | . . . Impact Corruptions . | . . . Robots Melted 1 | . 1 . Combat Hostiles 1 | . 1 . Parts Melted 3 | . 3 . Heat Transferred 2321 | 50 2271 . Parts Sabotaged . | . . . Parts Stolen . | . . . Parts Stripped . | . . . Power Chain Reactions . | . . . Alert | -11 -10 -9 ------- Run | Yrd Mat Mat Peak Influence 141 | 5 141 . Initial 32 | . 3 32 Average 50 | 1 53 . Maximum Alert Level . | . . . Low Security (%) 100 | 100 100 . Level 1 . | . . . Level 2 . | . . . Level 3 . | . . . Level 4 . | . . . Level 5 . | . . . High Security . | . . . Max Security . | . . . Squads Dispatched . | . . . Investigation . | . . . Extermination . | . . . Reinforcement . | . . . Assault . | . . . Garrison . | . . . Intercept . | . . . Searches Triggered . | . . . Construction Impeded . | . . . Haulers Reinforced . | . . . Active Scanning Responses . | . . . Cargo Convoy Interrupts . | . . . Stealth | -11 -10 -9 --------- Run | Yrd Mat Mat Distress Signals . | . . . Communications Jammed . | . . . Distress Signals . | . . . Times Spotted 26 | . 26 . Peak Tracking Total 3 | . 3 . Tactical Retreats 3 | . 3 . Traps | -11 -10 -9 ------- Run | Yrd Mat Mat Traps Triggered 3 | . 3 . Indirectly . | . . . Trap Hack Attempts . | . . . Triggered . | . . . Disarmed . | . . . Reprogrammed . | . . . Reused . | . . . Traps Extracted . | . . . Installed . | . . . Triggered . | . . . Machines | -11 -10 -9 ---------- Run | Yrd Mat Mat Machines Disabled . | . . . Max in Single Turn . | . . . Machines Repaired . | . . . Machines Dismantled . | . . . Machines Sabotaged . | . . . Overloaded Fab Kills . | . . . Hacking | -11 -10 -9 --------- Run | Yrd Mat Mat Machines Accessed 7 | . 7 . Terminals 7 | . 7 . Fabricators . | . . . Repair Stations . | . . . Recycling Units . | . . . Scanalyzers . | . . . Garrison Access . | . . . Total Hacks 18 | . 18 . Successful 6 | . 6 . Failed 12 | . 12 . Catastrophic 1 | . 1 . Database Lockouts . | . . . Manual 6 | . 6 . Terminals 18 | . 18 . Fabricators . | . . . Repair Stations . | . . . Recycling Units . | . . . Scanalyzers . | . . . Garrison Access . | . . . Terminal Hacks 6 | . 6 . Robot Analysis 2 | . 2 . Prototype ID Bank 1 | . 1 . Zone Layout 3 | . 3 . Fabricator Hacks . | . . . Repair Station Hacks . | . . . Recycling Unit Hacks . | . . . Scanalyzer . | . . . Garrison Access Hacks . | . . . Unauthorized Hacks . | . . . Terminals . | . . . Fabricators . | . . . Repair Stations . | . . . Recycling Units . | . . . Scanalyzers . | . . . Garrison Access . | . . . Data Cores Recovered 1 | . 1 . Used 1 | . 1 . Hacking Detections 5 | . 5 . Full Trace Events 1 | . 1 . Feedback Events . | . . . Feedback Blocked . | . . . Robot Schematics Acquired . | . . . Robots Built . | . . . Authchips . | . . . Time . | . . . Total Robot Build Rating . | . . . Part Schematics Acquired . | . . . Parts Built . | . . . Authchips . | . . . Time . | . . . Total Part Build Rating . | . . . Parts Repaired . | . . . Time . | . . . Parts Recycled . | . . . Recycled Matter . | . . . Retrieved Matter . | . . . Retrieved Components . | . . . Parts Scanalyzed . | . . . Part Schematics Acquired . | . . . Parts Damaged . | . . . Bothacking | -11 -10 -9 ------------ Run | Yrd Mat Mat Used RIF Installer . | . . . Robots Hacked . | . . . Non-combat . | . . . Combat . | . . . Robot Hacks Applied . | . . . Relay Couplers Released . | . . . Fabnet Peak Effective % . | . . . Robots Rewired . | . . . Allies Hacked . | . . . Hacks Repelled . | . . . Allies | -11 -10 -9 -------- Run | Yrd Mat Mat Total Allies . | . . . Largest Group . | . . . Highest-Rated Group . | . . . Highest-Rated Ally . | . . . Total Orders . | . . . Ally Attacks . | . . . Total Damage . | . . . Kills . | . . . Allies Corrupted . | . . . Allies Melted . | . . . Intel | -11 -10 -9 ------- Run | Yrd Mat Mat Robot Analysis Total 2 | . 2 . Derelict Logs Recovered . | . . . Drone Launches . | . . . Drone Recoveries . | . . . Exploration | -11 -10 -9 ------------- Run | Yrd Mat Mat Turns Passed 2413 | 140 2273 . Spaces Moved 1241 | 75 1166 . Core 6 | 4 2 . Treads 1235 | 71 1164 . Legs . | . . . Wheels . | . . . Hover . | . . . Flight . | . . . Fastest Speed 50 | 50 160 . Average Speed 160 | 154 160 . Slowest Speed 500 | 160 500 . Overloaded Moves . | . . . Propulsion Burnouts . | . . . Robots Hopped . | . . . Cave-ins Triggered . | . . . Exploration Rate (%) 34 | 6 97 1 Regions Visited 2 Branch Regions . Pre-discovered Areas . | . . . Known Exits Taken . | . . . Unknown Exits Taken 2 | 1 1 . Scrap Searched . | . . . Spaces Dug 22 | . 22 . Terrain Destroyed 38 | . 38 . Melee . | . . . Projectile . | . . . AOE 38 | . 38 . Terrain Rammed . | . . . Walls Destroyed . | . . . Machines Disabled . | . . . Actions | -11 -10 -9 --------- Run | Yrd Mat Mat Total 1562 | 92 1470 . Wait 221 | 4 217 . Move 1239 | 74 1165 . Hop . | . . . Pick Up 17 | 5 12 . Fast Attach 16 | 7 9 . Attach 1 | . 1 . Detach 2 | . 2 . Swap 11 | . 11 . Drop 7 | . 7 . Fire 48 | 2 46 . Melee . | . . . Ram . | . . . Kick . | . . . Crush . | . . . Escape Stasis . | . . . Rewire . | . . . Trap . | . . . Miscellaneous . | . . . Route ------- -11/Scrapyard -10/Materials (discovered 5 exits: [*Mat x3] / [*Min x2]) -9/Materials History --------- Turn | Location | Event 8 | -11/Scrapyard | Discovered new exit (range 15) 141 | -11/Scrapyard | Entered Materials 307 | -10/Materials | Build established: Mutant 706 | -10/Materials | Discovered new exit (range 14) 921 | -10/Materials | Discovered new exit (range 10) 921 | -10/Materials | Discovered new exit (range 7) 1092 | -10/Materials | Discovered new exit (range 12) 1469 | -10/Materials | Discovered new exit (range 16) 2414 | -10/Materials | Entered another Materials area 2414 | -9/Materials | Evolved 2 slots: Propulsion x1, Utility x1 2414 | -9/Materials | Self-destructed Last Messages --------------- 02213_ U-05 Engineer lays Concrete. 02272_ G-34 Mercenary suffers critical hit (Burn). 02272_ G-34 Mercenary destroyed. 02284_ The unstable cave ceiling collapses. 02290_ Acquired 35 matter. 02293_ U-05 Engineer lays Concrete. 02294_ U-05 Engineer builds a Wall. 02314_ R-06 Scavenger collects Aluminum Leg. 02315_ U-05 Engineer lays Concrete. 02316_ U-05 Engineer builds a Wall. 02324_ U-05 Engineer lays Concrete. 02325_ U-05 Engineer builds a Wall. 02334_ U-05 Engineer lays Concrete. 02335_ U-05 Engineer builds a Wall. 02357_ Acquired 2 matter. 02365_ M-13 Machinist repairs Com. Wheel. PARAMETERS=PROPULSION+1,UTILITY+1 LOCATION=UNKNOWN GOAL=ESCAPE Map ----- +----------------------------------------------------+ | | | | | | | | | | | | | | | | | | | | | | | | | | | | | | | | | | | | | ?????????????????????????????????????????????????? | | ?????????????????????????????????????????????????? | | ?????????????????????????????????????????????????? | | ?????????????????????????????????????????????????? | | ??????????????????????###### ????????????????????? | | ??????????????????????###### ????????????????????? | | ?????????????????????? # # ????????????????????? | | ?????????????????????? # @ # ????????????????????? | | ?????????????????????? # # ????????????????????? | | ?????????????????????? + + ????????????????????? | | ?????????????????????? # ##????????????????????? | | ?????????????????????? # ##????????????????????? | | ??????????????????????## ##????????????????????? | | ??????????????????????# #????????????????????? | | ??????????????????????? ?????????????????????? | | ??????????????????????? + ???????????????????? | | ????????????????????? # ???????????????????? | | ?????????????????????## # ???????????????????? | | ?????????????????????### ## ???????????????????? | | ????????????????????? # ###???????????????????? | | ?????????????????????? # ##????????????????????? | | ???????????????????????? ??????????????????????? | | ???????????????????????? ??????????????????????? | | ?????????????????????????????????????????????????? | | ?????????????????????????????????????????????????? | | ?????????????????????????????????????????????????? | | ?????????????????????????????????????????????????? | | ?????????????????????????????????????????????????? | | ?????????????????????????????????????????????????? | | ?????????????????????????????????????????????????? | | ?????????????????????????????????????????????????? | | ?????????????????????????????????????????????????? | +----------------------------------------------------+ Best States ------------- Heat Dissipation 39 Energy Generation 10 Energy Capacity 250 Matter Stores 300 Matter Capacity 300 Sight Range 16 Terrain Scan Density 10 Evasion (%) 40 Recoil Reduction 2 Item Schematics ----------------- None Robot Schematics ------------------ None Fabricated ------------ Nothing Alien Tech Used ----------------- None Achievements -------------- None Challenges ------------ None Game ------ Seed TiamatCryofiberRipper Manual? 0 Play Time 00:16:11 Cumulative 69.5 hours Start 2024.08.22 @ 21:15:09 End 2024.12.27 @ 01:38:39 Sessions 4 Manual Loads 0 Difficulty Rogue Special Mode None Game No. 68 Rogue 65 Adventurer 1 Explorer 2 Win Type - Total 1 Types 1/0/0/0/0/0/0/0/0 Lore% 31 Gallery% 47 Achievement% 46 Wizard Run 0 Options --------- Layout 2 ASCII 0 Keyboard 0 Movement Numpad Keybinds 0 Fullscreen 2 Font 24/Smallcaps Map View 50x44 Zoom Use 0% Tactical HUD 1 Map Filters NONE Filters NONE Steam 1 RUN: 342962ff-cac8-4c17-9da9-bd5f7a0bf3e5